[Event "1st Kallai Gabor Memorial Blitz 2022"]
[Site "Budapest"]
[Date "2022.12.01"]
[Round "4.1"]
[White "Gaal, Zsoka"]
[Black "Motylev, Alexander"]
[Result "1-0"]
[ECO "A06"]
[WhiteElo "2286"]
[BlackElo "2628"]
[Annotator "TA"]
[PlyCount "63"]
[EventDate "2022.12.01"]
[EventType "blitz"]
[EventCountry "HUN"]
[SourceTitle "playchess.com"]
[Source "ChessBase"]
[SourceQuality "1"]
[TimeControl "300+3"]

{[%evp 11,63,14,33,12,38,20,23,17,23,0,0,16,31,34,31,24,41,26,42,25,51,-9,76,78,61,71,71,69,70,0,0,-96,33,47,241,256,901,892,939,640,29988,29989,29994,29995,29995,29996,29996,29996,29997,29996,29997,29996,29996,29997]} 1. Nf3 {[%emt 0:00:04]} d5 {[%emt 0:00:05]} 2. g3 {[%emt 0:00:02]} e6 {[%emt 0:00:01]} 3. Bg2 {[%emt 0:00:02]} Nf6 {[%emt 0:00:01]} 4. O-O {[%emt 0:00:02]} Be7 {[%emt 0:00:01]} 5. d4 {[%emt 0:00:01]} O-O {[%emt 0:00:03]} 6. c4 {[%emt 0:00:01]} a5 {[%emt 0:00:01]} 7. Qc2 {[%emt 0:00:13] E06: Closed Catalan: Early deviations.} a4 {[%emt 0:00:01]} 8. Nbd2 {[%emt 0:00:08]} Nc6 {[%emt 0:00:12]} 9. Rd1 {[%emt 0:00:58] [#] White has an edge.} Bd7 $146 {[%emt 0:00:05][%cal Ob7b5]} ({Predecessor:} 9... a3 10. e4 axb2 11. Bxb2 Ba3 12. e5 Bxb2 13. Qxb2 Nd7 14. a4 Nb6 15. c5 Nd7 {0-1 (53) Hnydiuk,A (2394)-Matlakov,M (2674) Chess.com INT 2022}) 10. e4 {[%emt 0:00:04]} Nb4 {[%emt 0:00:53] Inhibits e5.} 11. Qb1 {[%emt 0:00:10]} c5 {[%emt 0:00:05]} 12. exd5 {[%emt 0:01:02]} exd5 {[%emt 0:00:02]} 13. a3 $1 {[%emt 0:00:01]} Nc6 {[%emt 0:00:08]} 14. cxd5 {[%emt 0:00:12]} Nxd4 {[%emt 0:01:05]} 15. Nxd4 {[%emt 0:00:02]} cxd4 {[%emt 0:00:01]} 16. Nc4 {[%emt 0:00:21]} (16. b4 $14) 16... Bg4 {[%emt 0:01:12]} (16... Bc5 $11 {remains equal.}) 17. Rxd4 $16 {[%emt 0:00:19][%cal Bd1d4,Bd4f4,Bf4f5][%mdl 32] Hoping for d6.} Bc5 {[%emt 0:00:01] Prevents d6.} 18. Rf4 {[%emt 0:00:30]} g5 {[%emt 0:00:21] [#]} 19. Rf5 {[%emt 0:00:35]} h6 {[%emt 0:00:17] [#]} 20. h4 {[%emt 0:00:39]} Re8 $1 $11 {[%emt 0:00:05] ...Re1+ is the strong threat.} (20... Bxf5 21. Qxf5 Nh7 22. Be4 $16) 21. hxg5 {[%emt 0:00:07] [#]} (21. Bd2 $11 {keeps the balance.} Re2 22. Qd3) 21... Re1+ {[%emt 0:00:35]} (21... Ne4 $1 $17 22. Rxf7 (22. Bxe4 $2 Bxf5 23. Nd2 Qxg5 $19) (22. Re5 Nxf2) 22... Kxf7 23. Bxe4 {[#]} Bf5 $1 24. Bxf5 Re1+ 25. Kh2 Qxd5 26. Ne5+ Ke7 27. Ng6+ Ke8) 22. Kh2 $14 {[%emt 0:00:00]} Bxf5 {[%emt 0:00:08] Black cannot hold the game after this.} ({Black should play} 22... Ne4 $14 23. Re5 (23. Bxe4 $2 {perishes.} Bxf5 24. Ne3 Bxe3 $19) 23... f5 24. gxf6 (24. gxh6 $2 Bxf2 $19) 24... Bxf2 25. f7+ (25. Rxe4 Bg1+ 26. Kh1 Be3+ 27. Kh2 Bg1+ 28. Kh1 Be3+ 29. Kh2 Bg1+ $11) 25... Kxf7 26. Bxe4 Qf6) 23. Qxf5 $18 {[%emt 0:00:01] Really sharp!} Nh7 {[%emt 0:00:02]} (23... Bxf2 24. gxf6 (24. Qxf6 $2 Qxf6 25. gxf6 Rc8 $19) 24... Bg1+ 25. Kh3 Qc8) 24. g6 {[%emt 0:00:05]} ({Stronger than} 24. gxh6 Qf6 25. Qg4+ Qg6 26. Qxg6+ fxg6 $11) 24... Nf6 {[%emt 0:00:01] [#]} 25. Bg5 $1 {[%emt 0:00:09][%mdl 512]} Rxa1 {[%emt 0:00:39]} (25... Kg7 26. Rxe1) 26. Bxf6 {[%emt 0:00:01] White mates.} (26. Qxf6 $2 {is the wrong capture.} Qxf6 27. Bxf6 Rc1 $19) 26... Qc8 {[%emt 0:00:06]} 27. gxf7+ Kxf7 {[%emt 0:00:01]} 28. Ne5+ {[%emt 0:00:03]} Kf8 {[%emt 0:00:05]} 29. Qg6 {[%emt 0:00:20][%csl Ge5][%cal Rg6f7]} Qc7 {[%emt 0:00:04]} 30. d6 {[%emt 0:00:00]} Bxd6 {[%emt 0:00:06] [#]} 31. Bd5 $1 {[%emt 0:00:01][%csl Gd5][%cal Rg6g8] This pair of bishops is nice.} Rh1+ {[%emt 0:00:05]} 32. Kxh1 {[%emt 0:00:07] Weighted Error Value: White=0.50/Black=0.63} 1-0

[Event "1st Kallai Gabor Memorial Blitz 2022"]
[Site "Budapest"]
[Date "2022.12.01"]
[Round "4.2"]
[White "Troff, Kayden"]
[Black "Beliavsky, Alexander G"]
[Result "1-0"]
[ECO "A46"]
[WhiteElo "2483"]
[BlackElo "2487"]
[Annotator "TA"]
[PlyCount "41"]
[EventDate "2022.12.01"]
[EventType "blitz"]
[EventCountry "HUN"]
[SourceTitle "playchess.com"]
[Source "ChessBase"]
[SourceQuality "1"]
[TimeControl "300+3"]

{[%evp 9,41,14,187,181,203,102,444,461,422,336,372,380,415,330,326,326,327,288,294,285,488,416,488,483,650,642,922,922,905,899,932,922,890,737]} 1. d4 {[%emt 0:00:04]} Nf6 {[%emt 0:00:04]} 2. Nf3 {[%emt 0:00:01]} e6 {[%emt 0:00:01]} 3. Bf4 c5 {[%emt 0:00:03]} 4. e3 {[%emt 0:00:02]} Nc6 5. Nc3 {[%emt 0:00:08][%cal Bb1c3,Bc3b5,Bb5c7][%mdl 32]} d5 $2 {[%emt 0:00:04] [#]} (5... cxd4 $11 {and Black has nothing to worry.} 6. exd4 (6. Nxd4 d6 $11) 6... Be7) 6. Nb5 $1 $18 {[%emt 0:00:01] Threatens to win with Nc7+. A46: 1 d4 Nf6 2 Nf3 e6: Torre, London and Colle Systems.} Kd7 {[%emt 0:02:09] [#]} 7. Bc7 $146 {[%emt 0:00:08] Inhibits a6.} (7. Ng5 $18) ({Predecessor:} 7. Ng5 cxd4 8. exd4 Qe7 9. Bd6 Qe8 10. Nc7 Bxd6 11. Nxe8 Kxe8 12. Bd3 h6 13. Nf3 {1-0 (36) Seliverstov,V (2464)-Tristan,L (2458) Chess.com INT 2017}) 7... Qe8 {[%emt 0:00:14][%mdl 8192] Loses the game.} (7... Qe7 $16 {is tougher.}) 8. Ne5+ Nxe5 {[%emt 0:00:14]} 9. Bxe5 {[%emt 0:00:09] Strongly threatening Nc7.} Qd8 {[%emt 0:00:31]} 10. Nc7 {[%emt 0:00:10] Inhibits a6.} Rb8 {[%emt 0:00:01] [#]} 11. Nxe6 $1 {[%emt 0:00:40][%mdl 512]} fxe6 {[%emt 0:00:34]} 12. Bxb8 {[%emt 0:00:02]} ({Stronger than} 12. Bb5+ Ke7 13. Bxb8 Qa5+ 14. c3 Qxb5 $15) 12... Qb6 {[%emt 0:00:01]} 13. Be2 {[%emt 0:00:27]} Qxb2 {[%emt 0:00:02]} 14. O-O {[%emt 0:00:07]} ({Don't take} 14. Bxa7 Qc3+ 15. Kf1 c4 $18) 14... b6 $2 {[%emt 0:00:06]} (14... c4 {keeps fighting.} 15. Bxa7 Bd6) 15. Rb1 {[%emt 0:00:20]} ({Don't play} 15. Bxa7 Ne4 16. Bg4 h5 $18) 15... Qa3 {[%emt 0:00:01]} 16. c4 {[%emt 0:00:09] White is clearly winning.} cxd4 {[%emt 0:00:00]} 17. cxd5 {[%emt 0:00:04]} Nxd5 {[%emt 0:00:10]} 18. Qxd4 {[%emt 0:00:17]} Qc5 {[%emt 0:00:02]} 19. Bb5+ {[%emt 0:00:12]} Ke7 {[%emt 0:00:03]} 20. Qh4+ {[%emt 0:00:01]} Kf7 {[%emt 0:00:04]} 21. Rfc1 {[%emt 0:00:06] Weighted Error Value: White=0.31/Black=1.17} 1-0

[Event "1st Kallai Gabor Memorial Blitz 2022"]
[Site "Budapest"]
[Date "2022.12.01"]
[Round "4.3"]
[White "Horvath, Csaba"]
[Black "Kozak, Adam"]
[Result "1/2-1/2"]
[ECO "E17"]
[WhiteElo "2502"]
[BlackElo "2538"]
[Annotator "TA"]
[PlyCount "45"]
[EventDate "2022.12.01"]
[EventType "blitz"]
[EventCountry "HUN"]
[SourceTitle "playchess.com"]
[Source "ChessBase"]
[SourceQuality "1"]
[TimeControl "300+3"]

{[%evp 18,45,31,12,15,15,23,18,22,20,14,0,0,0,57,7,61,7,61,0,45,20,61,0,35,-42,35,31,68,70]} 1. d4 {[%emt 0:00:04]} Nf6 {[%emt 0:00:05]} 2. Nf3 {[%emt 0:00:02]} e6 {[%emt 0:00:03]} 3. g3 {[%emt 0:00:04]} b6 {[%emt 0:00:02]} 4. Bg2 {[%emt 0:00:02]} Bb7 {[%emt 0:00:01]} 5. c4 {[%emt 0:00:03]} Be7 {[%emt 0:00:05]} 6. Nc3 {[%emt 0:00:03]} Ne4 {[%emt 0:00:13]} 7. Bd2 {[%emt 0:00:02]} Nxd2 {[%emt 0:00:38]} 8. Qxd2 {[%emt 0:00:02]} O-O {[%emt 0:00:02]} 9. O-O {[%emt 0:00:04]} d6 {[%emt 0:00:01]} 10. d5 {[%emt 0:00:18]} e5 {[%emt 0:00:26] E18: Queen's Indian: Old Main Line (4 g3 Bb7 5 Bg2 Be7 6 0-0 0-0 7 Nc3).} 11. e4 {[%emt 0:00:05]} a5 {[%emt 0:00:36]} 12. Ne1 {[%emt 0:00:05]} Nd7 {[%emt 0:00:10] The position is equal.} 13. Nd3 {[%emt 0:00:29]} Nc5 {[%emt 0:00:04]} 14. f4 {[%emt 0:01:03]} Nxd3 {[%emt 0:00:38]} 15. Qxd3 {[%emt 0:00:01] [#]} Bc8 $146 {[%emt 0:00:11]} (15... exf4 $11 16. gxf4 Re8) ({Predecessor:} 15... Bf6 16. f5 h5 17. h4 Bc8 18. Bf3 g6 19. Kg2 Kg7 20. Rh1 Bd7 21. Nd1 Rh8 {0-1 (60) Tomashevsky,E (2701)-Terry,R (2463) Chess.com INT 2017}) 16. Kh1 {[%emt 0:00:34]} (16. f5 $14) 16... Bf6 {[%emt 0:00:10]} (16... exf4 $11 17. gxf4 Bf6) 17. Rae1 {[%emt 0:00:06] White is more active.} (17. f5 $1 $14) 17... Bd7 {[%emt 0:00:24]} ({Black should play} 17... exf4 $11 18. gxf4 Bxc3 19. Qxc3 Qh4) 18. b3 {[%emt 0:00:02]} ({White should try} 18. f5 $14) 18... Kh8 {[%emt 0:00:45]} 19. a4 {[%emt 0:00:04]} Qe7 {[%emt 0:00:20]} 20. Nd1 {[%emt 0:00:04]} (20. f5 $14) 20... Rae8 {[%emt 0:00:05]} 21. Ne3 {[%emt 0:00:17]} (21. f5 $14) 21... g6 {[%emt 0:00:13]} (21... exf4 $15 22. gxf4 Rg8) 22. f5 $14 {[%emt 0:00:25]} Bg5 {[%emt 0:00:10]} 23. h4 {[%emt 0:00:13] Weighted Error Value: White=0.34/Black=0.38} 1/2-1/2

[Event "1st Kallai Gabor Memorial Blitz 2022"]
[Site "Budapest"]
[Date "2022.12.01"]
[Round "4.4"]
[White "Borhy, Marcell"]
[Black "Bjerre, Jonas Buhl"]
[Result "0-1"]
[ECO "A04"]
[WhiteElo "2407"]
[BlackElo "2622"]
[Annotator "TA"]
[PlyCount "64"]
[EventDate "2022.12.01"]
[EventType "blitz"]
[EventCountry "HUN"]
[SourceTitle "playchess.com"]
[Source "ChessBase"]
[SourceQuality "1"]
[TimeControl "300+3"]

{[%evp 18,64,31,29,46,18,22,13,14,24,84,73,97,34,58,43,44,0,12,-99,-112,-107,-116,-134,-129,-139,-128,-138,-133,-158,-161,-174,-183,-179,-170,-289,-297,-263,-267,-268,-266,-252,-222,-192,-116,-1303,-1254,-5377,-4300]} 1. Nf3 {[%emt 0:00:04]} c5 {[%emt 0:00:04]} 2. c4 {[%emt 0:00:02]} Nc6 {[%emt 0:00:01]} 3. Nc3 {[%emt 0:00:02]} g6 {[%emt 0:00:01]} 4. e3 {[%emt 0:00:01]} Bg7 {[%emt 0:00:01]} 5. d4 {[%emt 0:00:02]} d6 {[%emt 0:00:01]} 6. d5 {[%emt 0:00:21]} Ne5 {[%emt 0:00:01]} 7. Nxe5 {[%emt 0:00:07]} Bxe5 {[%emt 0:00:02]} 8. Bd3 {[%emt 0:00:05]} e6 {[%emt 0:00:01]} 9. O-O {[%emt 0:00:06]} Ne7 {[%emt 0:00:01]} 10. e4 {[%emt 0:00:03]} O-O {[%emt 0:00:03] [#] A35: Symmetrical English: 2 Nc3 Nc6 3 Nf3.} 11. Be3 $146 {[%emt 0:00:38]} ({Predecessor:} 11. Bh6 Bg7 12. Qd2 e5 13. a3 Bd7 14. b4 Bxh6 15. Qxh6 Kh8 16. bxc5 Ng8 17. Qe3 Qa5 18. Nb5 dxc5 19. Qxc5 {½-½ (45) Peralta,F (2513)-Pablo Marin,A (2431) Spain 2003}) 11... exd5 {[%emt 0:00:16]} 12. cxd5 {[%emt 0:00:02]} f5 {[%emt 0:00:24] The position is equal.} 13. f4 {[%emt 0:00:15]} Bg7 {[%emt 0:00:32] [#]} (13... Bd4 $11 14. Bxd4 cxd4) 14. e5 $1 $16 {[%emt 0:00:01]} dxe5 {[%emt 0:00:06]} 15. d6 {[%emt 0:00:01]} ({But not} 15. Bxc5 e4 16. Bc4 Kh8 $14) (15. Bc4 $16) 15... Nc6 $14 {[%emt 0:00:08]} 16. Bxc5 {[%emt 0:00:44]} Be6 {[%emt 0:00:28]} 17. fxe5 {[%emt 0:00:49]} Bxe5 {[%emt 0:00:30]} 18. Re1 {[%emt 0:00:50]} (18. Bb5 $1 $11) 18... Bxd6 $17 {[%emt 0:00:54]} 19. Bxd6 {[%emt 0:00:06]} Qxd6 {[%emt 0:00:01]} 20. Kh1 {[%emt 0:00:11][%cal Od3f5] [#] aiming for Bxf5!} Rad8 {[%emt 0:00:16]} 21. Bb5 {[%emt 0:00:02]} Nd4 {[%emt 0:00:07]} 22. Bf1 {[%emt 0:00:06]} Bf7 {[%emt 0:00:03] Black is more active.} 23. Qa4 {[%emt 0:00:16]} a6 {[%emt 0:00:08]} 24. Rad1 {[%emt 0:00:20]} b5 {[%emt 0:00:05][%cal Bb7b5,Bb5b4][%mdl 32]} 25. Qa5 {[%emt 0:00:01]} Qf6 {[%emt 0:00:11][%cal Ob5b4]} 26. a4 {[%emt 0:00:29]} (26. a3 $142) 26... b4 $19 {[%emt 0:00:04]} 27. Nb1 {[%emt 0:00:27]} Nc2 {[%emt 0:00:18][%csl LRb2,LRe1][%cal Bd4c2,Bc2e3,Be3f1][%mdl 32]} 28. Rxd8 {[%emt 0:00:01]} Rxd8 {[%emt 0:00:11]} ({Weaker is} 28... Nxe1 29. Rxf8+ Kxf8 30. Qxb4+ Qe7 31. Qc3 $16) ({Stronger than} 28... Qxd8 29. Qxd8 Rxd8 30. Rc1 $19) 29. Rc1 {[%emt 0:00:04]} Ne3 {[%emt 0:00:05]} 30. Qxb4 {[%emt 0:00:05]} Bd5 {[%emt 0:00:14]} (30... Qg5 $19 {White must now prevent ...Bd5.} 31. g3 Nxf1 32. Rxf1 Qe3) 31. Qc3 $2 {[%emt 0:00:07][%mdl 8192]} (31. Nc3 $17 Qc6 32. Kg1 Nxf1 33. Qe7) 31... Qg5 {[%emt 0:00:03][%cal Rd5g2]} 32. Kg1 {[%emt 0:00:07]} Nxf1 {[%emt 0:00:06] Weighted Error Value: White=0.58/Black=0.11 (very precise)} 0-1

[Event "1st Kallai Gabor Memorial Blitz 2022"]
[Site "Budapest"]
[Date "2022.12.01"]
[Round "4.5"]
[White "Berkes, Ferenc"]
[Black "Ruck, Robert"]
[Result "1/2-1/2"]
[ECO "A49"]
[WhiteElo "2643"]
[BlackElo "2537"]
[Annotator "TA"]
[PlyCount "35"]
[EventDate "2022.12.01"]
[EventType "blitz"]
[EventCountry "HUN"]
[SourceTitle "playchess.com"]
[Source "ChessBase"]
[SourceQuality "1"]
[TimeControl "300+3"]

{[%evp 11,35,0,0,3,2,1,11,0,32,0,0,0,0,-16,0,-64,-63,-152,-157,-145,-169,-170,-127,-233,12,13]} 1. d4 {[%emt 0:00:04]} Nf6 {[%emt 0:00:05]} 2. Nf3 {[%emt 0:00:01]} g6 {[%emt 0:00:01]} 3. g3 {[%emt 0:00:01]} Bg7 4. Bg2 {[%emt 0:00:01]} d5 {[%emt 0:00:02]} 5. O-O {[%emt 0:00:02]} O-O {[%emt 0:00:02]} 6. c3 {[%emt 0:00:01]} c6 {[%emt 0:00:06]} 7. a4 {[%emt 0:00:02] D02: 1 d4 d5 2 Nf3 sidelines, including 2...Nf6 3 g3 and 2...Nf6 3 Bf4.} Bf5 {[%emt 0:00:04]} 8. Nbd2 {[%emt 0:00:09]} Nbd7 {[%emt 0:00:02][%cal Bb8d7,Bd7b6,Bb6c8][%mdl 32] [#]} 9. h3 $146 {[%emt 0:00:22]} ({Predecessor:} 9. a5 c5 10. Nb3 c4 11. Nbd2 Qc7 12. Nh4 Be6 13. Re1 Rfe8 14. e4 dxe4 15. Nxe4 Nxe4 16. Bxe4 {1-0 (39) Van Gysel,M (1872)-Kraujunas,V (1700) LSS email 2014}) 9... Re8 {[%emt 0:00:04]} 10. Nh4 {[%emt 0:00:23]} (10. g4 $5 {[%cal Rg4f5]} Be6 11. Ng5 $11) 10... Be6 {[%emt 0:00:03]} 11. f4 {[%emt 0:00:06][%cal Bf2f4,Bf4f5][%mdl 32]} Nb6 {[%emt 0:00:26]} 12. f5 {[%emt 0:00:18]} Bd7 {[%emt 0:00:01]} (12... gxf5 {simplifies} 13. Nxf5 Bxf5 14. Rxf5 Nc8) 13. g4 {[%emt 0:00:26]} (13. a5 $11 Nc8 14. e4 dxe4 15. Nxe4) 13... e5 $1 $15 {[%emt 0:00:09] And now ...exd4 would win.} 14. g5 {[%emt 0:00:05]} ({Better is} 14. a5 $15 Nc8 15. fxg6 hxg6 16. Nhf3 exd4 17. cxd4) 14... Nh5 $17 {[%emt 0:00:02][%csl LRd4,LRg5]} 15. f6 {[%emt 0:00:12]} Bf8 {[%emt 0:00:01]} 16. a5 {[%emt 0:00:11]} Nc8 {[%emt 0:00:06] Hoping for ...e4.} 17. Ndf3 {[%emt 0:00:08]} (17. Nhf3 $17 Qc7 18. dxe5 (18. Nxe5 Rxe5 19. dxe5 Bc5+ 20. Rf2 Bxf2+ 21. Kxf2 Qxe5 $17)) 17... Ng3 $2 {[%emt 0:00:30] [#]} (17... exd4 $19 18. cxd4 Re4) 18. Nxe5 {[%emt 0:00:09] Weighted Error Value: White=0.35/Black=0.33} 1/2-1/2

[Event "1st Kallai Gabor Memorial Blitz 2022"]
[Site "Budapest"]
[Date "2022.12.01"]
[Round "5.1"]
[White "Kozak, Adam"]
[Black "Troff, Kayden"]
[Result "0-1"]
[ECO "A05"]
[WhiteElo "2538"]
[BlackElo "2483"]
[Annotator "TA"]
[PlyCount "67"]
[EventDate "2022.12.01"]
[EventType "blitz"]
[EventCountry "HUN"]
[SourceTitle "playchess.com"]
[Source "ChessBase"]
[SourceQuality "1"]
[TimeControl "300+3"]

{[%evp 9,67,0,3,0,6,0,23,20,25,0,22,22,23,29,75,79,60,60,52,62,76,59,71,60,61,86,98,2,61,69,84,22,23,22,22,0,1,1,2,12,47,46,44,56,102,48,49,52,55,-158,-165,-471,-458,-447,-451,-425,-414,-404,-410,-747]} 1. Nf3 {[%emt 0:00:06]} Nf6 {[%emt 0:00:04]} 2. c4 {[%emt 0:00:01]} g6 {[%emt 0:00:02]} 3. Nc3 {[%emt 0:00:01]} Bg7 {[%emt 0:00:02]} 4. e4 {[%emt 0:00:02]} e5 {[%emt 0:00:01]} 5. Be2 {[%emt 0:00:08]} O-O {[%emt 0:00:05]} 6. O-O {[%emt 0:00:08] A16: English Opening: 1...Nf6 with ...d5.} Nc6 {[%emt 0:00:08]} 7. d3 {[%emt 0:00:30]} h6 {[%emt 0:00:01]} 8. Rb1 {[%emt 0:00:29] [#] White has an edge.} a5 $146 {[%emt 0:00:03]} ({Predecessor:} 8... d6 9. h3 Nh5 10. Nd5 Ne7 11. Be3 c6 12. Nxe7+ Qxe7 13. Qd2 Kh7 14. Nh2 Qh4 {1-0 (40) Oelmeyer,G (2027)-Foerster,J (2124) Germany 2008}) 9. Nd5 {[%emt 0:00:09]} Nxd5 {[%emt 0:00:50]} 10. cxd5 Ne7 11. d4 {[%emt 0:00:39]} exd4 {[%emt 0:00:18]} (11... d6 $11 {should be considered.}) 12. Nxd4 $16 {[%emt 0:00:11]} d6 {[%emt 0:00:01]} 13. Be3 {[%emt 0:00:52]} c6 {[%emt 0:00:08]} 14. dxc6 {[%emt 0:00:42]} bxc6 {[%emt 0:00:02]} 15. Rc1 {[%emt 0:00:01]} (15. Qd2 $5 {[%cal Re3h6]}) 15... Bb7 {[%emt 0:00:30]} 16. Qd2 {[%emt 0:00:03]} Kh7 {[%emt 0:00:59]} 17. Rfd1 {[%emt 0:00:01]} a4 {[%emt 0:00:12]} 18. Qb4 {[%emt 0:01:09]} (18. b4 $16) 18... Qd7 {[%emt 0:00:08]} (18... Qb8 $1 $11) 19. Nf3 $14 {[%emt 0:00:22]} d5 {[%emt 0:00:04]} 20. exd5 {[%emt 0:00:17]} (20. Bd4 $16) 20... Nxd5 $11 {[%emt 0:00:01]} 21. Qd2 {[%emt 0:00:03]} Rfe8 {[%emt 0:00:23]} (21... Rfd8 {looks sharper.} 22. Bd4 Qf5 23. Bd3 Qf4) 22. Bd4 {[%emt 0:00:02]} Bxd4 {[%emt 0:00:20]} 23. Nxd4 {[%emt 0:00:01]} Rad8 {[%emt 0:00:22]} (23... Qe7 {simplifies} 24. Bc4 Red8 25. Qe2 Qxe2 26. Nxe2 Ba6) 24. Bf3 {[%emt 0:00:04]} c5 {[%emt 0:00:27] Prevents h3.} 25. Rxc5 {[%emt 0:00:09]} Nf6 {[%emt 0:00:03][%cal Od7d4] ...Qxd4! is the strong threat.} 26. Rcc1 {[%emt 0:00:06]} Ne4 {[%emt 0:00:08]} (26... Bxf3 $14 {deserves consideration.} 27. Nxf3 Qb5) 27. Qf4 {[%emt 0:00:03]} (27. Qb4 $16 {[%cal Od4c6] Black must now prevent Nc6!} Rb8 28. Qa3) 27... Ng5 $14 {[%emt 0:00:08] aiming for ...Bxf3.} 28. Bxb7 {[%emt 0:00:04]} Qxb7 {[%emt 0:00:01]} 29. Nc2 $2 {[%emt 0:00:03]} (29. f3 $14) 29... Re4 $1 $36 {[%emt 0:00:08][%cal Be8e4,Be4g4,Bg4f4][%mdl 2080] Black has strong initiative. Black is more active.} 30. Qf6 $2 {[%emt 0:00:03] [#]} (30. Qg3 Qxb2 31. Ne3) 30... Rg4 $1 $19 {[%emt 0:00:05][%csl Gg4][%cal Rb7g2][%mdl 64]} 31. Ne3 {[%emt 0:00:03]} (31. Rxd8 $2 Qxg2#) 31... Rxd1+ {[%emt 0:00:09]} 32. Rxd1 {[#]} Nh3+ $1 {[%emt 0:00:02]} 33. Kf1 {[%emt 0:00:06] [#]} Rf4 $1 {[%emt 0:00:04]} 34. Qc3 {Weighted Error Value: White=0.39/Black=0.10 (very precise)} (34. Qe5 $142 Rxf2+ 35. Ke1 Qb4+ 36. Qc3) 0-1

[Event "1st Kallai Gabor Memorial Blitz 2022"]
[Site "Budapest"]
[Date "2022.12.01"]
[Round "5.2"]
[White "Bjerre, Jonas Buhl"]
[Black "Horvath, Csaba"]
[Result "1-0"]
[ECO "B40"]
[WhiteElo "2622"]
[BlackElo "2502"]
[Annotator "TA"]
[PlyCount "53"]
[EventDate "2022.12.01"]
[EventType "blitz"]
[EventCountry "HUN"]
[SourceTitle "playchess.com"]
[Source "ChessBase"]
[SourceQuality "1"]
[TimeControl "300+3"]

{[%evp 16,53,30,10,38,28,40,26,36,33,59,58,62,49,54,57,69,64,65,75,90,68,94,80,113,96,106,78,127,124,129,135,148,124,139,121,1350,758,2047,1643]} 1. e4 c5 2. Nf3 {[%emt 0:00:05]} e6 {[%emt 0:00:05]} 3. g3 {[%emt 0:00:01]} Nc6 {[%emt 0:00:01]} 4. Bg2 {[%emt 0:00:02]} Nf6 {[%emt 0:00:01]} 5. Nc3 {[%emt 0:00:03][%cal Bb1c3,Bc3e2,Be2d4][%mdl 32]} d6 {[%emt 0:00:11]} 6. d4 {[%emt 0:00:08]} cxd4 {[%emt 0:00:01]} 7. Nxd4 {[%emt 0:00:02]} Bd7 {[%emt 0:00:01]} 8. O-O {[%emt 0:00:18]} Be7 {[%emt 0:00:01]} 9. Nce2 {is the new trend.} Nxd4 {[%emt 0:01:39] B80: Sicilian Scheveningen: 6 g3 and 6 Be3, including English Attack.} 10. Nxd4 {[%emt 0:00:10]} Rc8 {[%emt 0:00:03]} 11. a4 {[%emt 0:00:06]} O-O {[%emt 0:00:08] [#] White has an edge.} 12. b3 $146 {[%emt 0:00:02]} ({Predecessor:} 12. Nb5 e5 13. h3 Rc6 14. b3 a6 15. Na3 Rc8 16. c4 Bc6 17. Re1 Nd7 18. Nc2 {½-½ (69) Paveliev,A (2418)-Belov,V (2600) Moscow 2007}) 12... Qc7 {[%emt 0:00:11]} 13. c4 $1 {[%emt 0:00:02]} Rfd8 {[%emt 0:00:13][%cal Od6d5]} 14. Be3 {[%emt 0:00:25] Inhibits d5.} Qb8 {[%emt 0:00:10]} 15. Qe2 {[%emt 0:01:11]} Be8 {[%emt 0:00:10]} 16. Rfd1 {[%emt 0:00:04]} a6 {[%emt 0:00:14]} 17. a5 {[%emt 0:00:01]} Nd7 {[%emt 0:00:08]} 18. f4 {[%emt 0:00:11][%cal Bf2f4,Bf4f5][%mdl 32]} Bf6 {[%emt 0:00:06]} 19. Rac1 $36 {[%emt 0:00:07][%mdl 2048] White is really pushing.} Nc5 {[%emt 0:00:04]} 20. b4 {[%emt 0:00:22]} Nd7 {[%emt 0:00:17]} 21. f5 {[%emt 0:00:18]} Bxd4 {[%emt 0:00:09]} ({Black should try} 21... Nf8) 22. Rxd4 {[%emt 0:00:13]} e5 {[%emt 0:00:08]} 23. Rd2 {[%emt 0:00:02]} b6 {[%emt 0:00:08]} 24. axb6 {White is much more active.} Nxb6 {[%emt 0:00:01]} 25. f6 {[%emt 0:00:19] [#] And now Qg4 would win.} gxf6 $2 {[%emt 0:00:30][%mdl 8192]} (25... g6 $16) 26. c5 {[%emt 0:00:19][%cal Oe3h6] Black must now prevent Bh6!} dxc5 {[%emt 0:00:13]} 27. Bh6 {[%emt 0:00:11] Weighted Error Value: White=0.10 (very precise) /Black=0.17 (very precise)} ({Worse is} 27. Rxc5 Rxd2 28. Bxd2 Bb5 29. Qg4+ Kh8 $11) 1-0

[Event "1st Kallai Gabor Memorial Blitz 2022"]
[Site "Budapest"]
[Date "2022.12.01"]
[Round "5.3"]
[White "Motylev, Alexander"]
[Black "Berkes, Ferenc"]
[Result "1/2-1/2"]
[ECO "B19"]
[WhiteElo "2628"]
[BlackElo "2643"]
[Annotator "TA"]
[PlyCount "42"]
[EventDate "2022.12.01"]
[EventType "blitz"]
[EventCountry "HUN"]
[SourceTitle "playchess.com"]
[Source "ChessBase"]
[SourceQuality "1"]
[TimeControl "300+3"]

{[%evp 24,25,16,2]} 1. e4 {[%emt 0:00:05]} c6 {[%emt 0:00:04]} 2. d4 {[%emt 0:00:02]} d5 {[%emt 0:00:02]} 3. Nc3 {[%emt 0:00:01][%cal Bb1c3,Bc3e4,Be4g3][%mdl 32]} dxe4 {[%emt 0:00:02]} 4. Nxe4 {[%emt 0:00:02]} Bf5 {[%emt 0:00:03]} 5. Ng3 {[%emt 0:00:02]} Bg6 {[%emt 0:00:01]} 6. h4 {[%emt 0:00:03]} h6 {[%emt 0:00:03]} 7. Nf3 {[%emt 0:00:03]} Nd7 {[%emt 0:00:02]} 8. h5 {[%emt 0:00:05]} Bh7 {[%emt 0:00:03]} 9. Bd3 {[%emt 0:00:01]} Bxd3 {[%emt 0:00:03]} 10. Qxd3 {[%emt 0:00:02]} e6 {[%emt 0:00:04]} 11. Bd2 {[%emt 0:00:05]} Ngf6 {[%emt 0:00:04]} 12. O-O-O {[%emt 0:00:02]} Be7 {[%emt 0:00:07]} 13. Kb1 {[%emt 0:00:03] [#]} {Predecessor:} Qb6 $146 {B19: Classical Caro-Kann: 4...Bf5 main line.} 14. Ne4 Rd8 15. c4 c5 16. Bc3 O-O 17. Qe2 Nxe4 18. Qxe4 Nf6 19. Qe2 cxd4 20. Bxd4 Bc5 21. Bxc5 Qxc5 {1-0 (47) Sevian,S (2684)-Keymer,V (2686) Chess.com INT 2022} 1/2-1/2